[Event "Fagernes Chess GM-Swiss 2025"]
[Site "Fagernes"]
[Date "2025.04.16"]
[Round "5.7"]
[White "Kreken, Eivind Grunt"]
[Black "Ghosh, Diptayan"]
[Result "0-1"]
[Annotator "TA"]
[ECO "B10"]
[WhiteElo "2326"]
[BlackElo "2573"]
[PlyCount "78"]
[EventDate "2025.04.12"]
[EventCountry "NOR"]
[SourceTitle "playchess.com"]
[Source "ChessBase"]
[SourceQuality "1"]
[TimeControl "40/6000+30:2400+30"]

{[%evp 13,78,-19,0,-4,-4,-19,-14,-25,-27,-26,-22,-31,-12,-5,0,0,0,0,2,0,0,-15,-8,-14,2,-6,0,0,0,-31,-33,-33,0,-17,-23,-8,0,0,0,-49,-61,-66,-59,-91,-89,-116,-84,-165,-172,-159,-152,-162,-158,-182,-176,-183,-184,-169,-169,-364,-368,-350,-343,-455,-441,-409,-409]} 1. e4 {[%emt 0:00:17]} c6 {[%emt 0:03:54]} 2. c4 {[%emt 0:00:24]} d5 {[%emt 0:00:06]} 3. cxd5 {[%emt 0:00:08]} cxd5 {[%emt 0:00:08]} 4. exd5 {[%emt 0:00:13]} Nf6 {[%emt 0:00:07]} 5. Qa4+ {[%emt 0:00:07]} Nbd7 {[%emt 0:00:05]} 6. Nc3 {[%emt 0:00:23]} g6 {[%emt 0:00:12]} 7. Nf3 {[%emt 0:01:02]} Bg7 {[%emt 0:00:04][%mdl 1024] Black has compensation.} 8. Bc4 {[%emt 0:00:10]} O-O {[%emt 0:00:06]} 9. d3 {[%emt 0:00:30]} a6 {[%emt 0:00:04] [#] Hoping for ...b5.} 10. Qa3 {[%emt 0:00:11] The position is equal.} b6 {[%emt 0:00:05][%cal Bb7b6,Bb6b5][%mdl 32]} 11. O-O {[%emt 0:00:30]} Bb7 {[%emt 0:00:03]} 12. Re1 {[%emt 0:00:16]} Re8 {[%emt 0:00:08]} 13. Bd2 {[%emt 0:01:37]} Bf8 {[%emt 0:04:06]} (13... b5 $5 14. Bb3 $8 Bf8 $11) 14. d4 {[%emt 0:18:34]} b5 {[%emt 0:01:19]} 15. Qb3 {[%emt 0:05:13]} Nb6 {[%emt 0:00:08]} 16. Be2 {[%emt 0:02:02]} Nbxd5 {[%emt 0:00:06]} 17. a4 {[%emt 0:11:02]} b4 {[%emt 0:00:05]} 18. Nxd5 {[%emt 0:00:17]} Bxd5 {[%emt 0:00:04]} 19. Qxb4 {[%emt 0:01:36]} e6 {[%emt 0:00:05]} 20. Qa5 {[%emt 0:04:14]} Qb8 {[%emt 0:00:15]} 21. b4 {[%emt 0:24:06]} Ne4 {[%emt 0:37:09]} 22. b5 {[%emt 0:02:26]} Bd6 {[%emt 0:29:42]} 23. h3 {[%emt 0:12:21]} axb5 {[%emt 0:11:23]} 24. Qxb5 {[%emt 0:04:04]} Nxd2 {[%emt 0:01:00]} (24... Ra7 {simplifies} 25. Qxb8 Rxb8 26. Rec1 Nxd2 27. Nxd2 Bf4) 25. Nxd2 {[%emt 0:00:18]} Bb4 {[%emt 0:00:41]} 26. Red1 {[%emt 0:02:13]} (26. Qd3 $1 $11) 26... Bc3 $15 {[%emt 0:01:23][%csl LRa1,LRd4]} 27. Rac1 {[%emt 0:03:34]} Bxd4 {[%emt 0:02:11] Threatens to win with ...Qg3. Black is more active. A strong pair of Bishops.} 28. Nf3 {[%emt 0:04:59]} Bf6 {[%emt 0:01:11]} 29. Rb1 {[%emt 0:02:11]} Qa7 {[%emt 0:02:43][%cal Oe8b8]} 30. Qb6 {[%emt 0:01:51]} (30. Qb4 $17) 30... Qxb6 $19 {[%emt 0:01:48]} ({Stronger than} 30... Qxa4 31. Bb5 Qc2 32. Bxe8 Rxe8 33. Ne1 $11) 31. Rxb6 {[%emt 0:00:01]} Rxa4 {[%emt 0:00:33]} 32. Rd6 {[%emt 0:02:58]} Ra5 {[%emt 0:03:09] Prevents Bb5} 33. Rc1 {[%emt 0:00:47]} Ra2 {[%emt 0:02:30]} 34. Kf1 {[%emt 0:01:03]} Rea8 {[%emt 0:03:49]} 35. Rb6 {[%emt 0:00:48]} Kg7 $36 {[%emt 0:00:24][%mdl 2048] Keeping White busy.} 36. Bd3 $2 {[%emt 0:01:56] [#]} (36. Rd1) 36... Bxf3 {[%emt 0:01:45]} 37. gxf3 {[%emt 0:00:01]} Bd4 {[%emt 0:00:26][%csl LRb6,LRf2]} 38. Rd6 {[%emt 0:00:01]} Rxf2+ {[%emt 0:00:39]} ({Not} 38... Bxf2 39. Rc2 Rxc2 40. Bxc2 $19) 39. Ke1 {[%emt 0:00:11]} Be3 {[%emt 0:00:05] Weighted Error Value: White=0.23 (precise) /Black=0.04 (flawless) .  Mistake:       	White=3     	---        Inaccurate:     	White=4     	Black=1      OK:         	White=9     	Black=20     Best:        	White=2     	Black=5} 0-1

[Event "Fagernes Chess GM-Swiss 2025"]
[Site "Fagernes"]
[Date "2025.04.16"]
[Round "5.8"]
[White "Zhou, Yang-Fan"]
[Black "Kantor, Gergely"]
[Result "1/2-1/2"]
[Annotator "RC"]
[ECO "C54"]
[WhiteElo "2418"]
[BlackElo "2578"]
[PlyCount "52"]
[EventDate "2025.04.12"]
[EventCountry "NOR"]
[SourceTitle "playchess.com"]
[Source "ChessBase"]
[SourceQuality "1"]
[TimeControl "40/6000+30:2400+30"]

1. e4 e5 {[%emt 0:00:30]} 2. Nf3 Nc6 {[%emt 0:00:30]} 3. Bc4 Nf6 {[%emt 0:00:30]} 4. d3 Bc5 {[%emt 0:00:30]} 5. c3 d6 {[%emt 0:00:30]} 6. O-O a6 {[%emt 0:00:30]} 7. a4 h6 {[%emt 0:00:30]} 8. Re1 Ba7 {[%emt 0:00:30]} 9. Nbd2 g5 {[%emt 0:00:30]} 10. b4 Nh7 {[%emt 0:00:30]} 11. Kh1 O-O {[%emt 0:00:30]} 12. Rf1 Ne7 {[%emt 0:00:30]} 13. Bb3 Ng6 {[%emt 0:00:30]} 14. Bb2 Qf6 {[%emt 0:00:30]} 15. Ne1 Be6 {[%emt 0:00:30]} 16. Rc1 c6 {[%emt 0:00:30]} 17. c4 Nf4 {[%emt 0:00:30]} 18. Ndf3 g4 {[%emt 0:00:30]} 19. Ng1 Ng5 {[%emt 0:00:30]} 20. g3 Nfh3 {[%emt 0:00:30]} 21. Nxh3 Nxh3 {[%emt 0:00:30]} 22. Qe2 h5 {[%emt 0:00:30]} 23. f4 gxf3 {[%emt 0:00:30]} 24. Nxf3 Qh6 {[%emt 0:00:30]} 25. Nh4 Bg4 {[%emt 0:00:30]} 26. Qe1 Qe6 {[%emt 0:00:30]} 1/2-1/2

[Event "Fagernes Chess GM-Swiss 2025"]
[Site "Fagernes"]
[Date "2025.04.16"]
[Round "5.9"]
[White "Aradhya, Garg"]
[Black "Kulaots, Kaido"]
[Result "1/2-1/2"]
[Annotator "RC"]
[ECO "E63"]
[WhiteElo "2387"]
[BlackElo "2510"]
[PlyCount "84"]
[EventDate "2025.04.12"]
[EventCountry "NOR"]
[SourceTitle "playchess.com"]
[Source "ChessBase"]
[SourceQuality "1"]
[TimeControl "40/6000+30:2400+30"]

1. d4 {[%emt 0:00:02]} Nf6 {[%emt 0:00:31]} 2. c4 {[%emt 0:00:08]} g6 {[%emt 0:00:23]} 3. g3 {[%emt 0:00:08]} Bg7 {[%emt 0:01:57]} 4. Bg2 {[%emt 0:00:02]} O-O {[%emt 0:01:06]} 5. Nc3 {[%emt 0:02:37]} Nc6 {[%emt 0:04:59]} 6. h3 {[%emt 0:06:07]} d6 {[%emt 0:06:28]} 7. Nf3 {[%emt 0:00:24]} a6 {[%emt 0:09:16]} 8. O-O {[%emt 0:00:22]} Rb8 {[%emt 0:09:31]} 9. c5 {[%emt 0:05:58]} dxc5 {[%emt 0:14:13]} 10. dxc5 {[%emt 0:00:03]} Bf5 {[%emt 0:06:43]} 11. Bf4 {[%emt 0:12:11]} Ne4 {[%emt 0:03:46]} 12. Nxe4 {[%emt 0:11:17]} Bxe4 {[%emt 0:03:07]} 13. Qa4 {[%emt 0:01:18]} Bf5 {[%emt 0:03:13]} 14. Rad1 {[%emt 0:02:20]} Qc8 {[%emt 0:00:27]} 15. g4 {[%emt 0:01:26]} Bd7 {[%emt 0:01:22]} 16. Qa3 {[%emt 0:13:16]} e5 {[%emt 0:08:40]} 17. Bg3 {[%emt 0:05:47]} Qe8 {[%emt 0:06:24]} 18. e4 {[%emt 0:06:42]} Qe7 {[%emt 0:02:40]} 19. Rd2 {[%emt 0:01:09]} Be6 {[%emt 0:09:13]} 20. Rfd1 {[%emt 0:00:18]} f6 {[%emt 0:01:27]} 21. Qc3 {[%emt 0:07:28]} Rfd8 {[%emt 0:09:24]} 22. g5 {[%emt 0:07:54]} fxg5 {[%emt 0:01:18]} 23. Nxe5 {[%emt 0:03:46]} Rxd2 {[%emt 0:00:17]} 24. Rxd2 {[%emt 0:00:05]} Qe8 {[%emt 0:00:33]} 25. Rd1 {[%emt 0:10:12]} Bf7 {[%emt 0:01:16]} 26. Nxc6 {[%emt 0:00:08]} Bxc3 {[%emt 0:01:31]} 27. Nxb8 {[%emt 0:00:03]} Qxb8 {[%emt 0:02:15]} 28. bxc3 {[%emt 0:00:02]} Be6 {[%emt 0:01:07]} 29. Be5 {[%emt 0:07:39]} Qf8 {[%emt 0:00:30]} 30. Bxc7 {[%emt 0:00:10]} Qxc5 {[%emt 0:00:20]} 31. Rd8+ {[%emt 0:00:10]} Kf7 {[%emt 0:00:31]} 32. Bd6 {[%emt 0:00:13]} Qxc3 {[%emt 0:00:48]} 33. e5 {[%emt 0:00:25]} Qc1+ {[%emt 0:00:58]} 34. Kh2 {[%emt 0:00:03]} Qf4+ {[%emt 0:00:04]} 35. Kg1 {[%emt 0:00:03]} Qc1+ {[%emt 0:00:06]} 36. Kh2 {[%emt 0:00:02]} g4 {[%emt 0:01:31]} 37. Rf8+ {[%emt 0:02:41]} Kg7 {[%emt 0:00:01]} 38. hxg4 {[%emt 0:00:16]} Bxg4 {[%emt 0:00:39]} 39. Bd5 {[%emt 0:02:12]} Qd2 {[%emt 0:00:51]} 40. Rf7+ {[%emt 0:03:25]} Kh8 {[%emt 0:00:17]} 41. Rf8+ {[%emt 0:03:49]} Kg7 {[%emt 0:01:06]} 42. Rf7+ {[%emt 0:00:08]} Kh8 {[%emt 0:01:20]} 1/2-1/2

[Event "Fagernes Chess GM-Swiss 2025"]
[Site "Fagernes"]
[Date "2025.04.16"]
[Round "5.10"]
[White "Vestby-Ellingsen, Mads"]
[Black "Rozentalis, Eduardas"]
[Result "1/2-1/2"]
[Annotator "RC"]
[ECO "C55"]
[WhiteElo "2398"]
[BlackElo "2481"]
[PlyCount "51"]
[EventDate "2025.04.12"]
[EventCountry "NOR"]
[SourceTitle "playchess.com"]
[Source "ChessBase"]
[SourceQuality "1"]
[TimeControl "40/6000+30:2400+30"]

1. e4 {[%emt 0:03:09]} e5 {[%emt 0:00:41]} 2. Nf3 {[%emt 0:00:18]} Nc6 {[%emt 0:00:05]} 3. Bc4 {[%emt 0:01:31]} Nf6 {[%emt 0:01:21]} 4. d3 {[%emt 0:00:18]} Be7 {[%emt 0:00:15]} 5. Nc3 {[%emt 0:00:38]} d6 {[%emt 0:00:39]} 6. a4 {[%emt 0:00:32]} O-O {[%emt 0:01:40]} 7. O-O {[%emt 0:03:54]} Be6 {[%emt 0:00:44]} 8. Nd5 {[%emt 0:00:46]} Bxd5 {[%emt 0:10:37]} 9. exd5 {[%emt 0:00:27]} Nb4 {[%emt 0:01:34]} 10. d4 {[%emt 0:00:18]} e4 {[%emt 0:04:09]} 11. Nd2 {[%emt 0:00:30]} Re8 {[%emt 0:10:27]} 12. c3 {[%emt 0:02:28]} Nbxd5 {[%emt 0:02:41]} 13. Nxe4 {[%emt 0:00:22]} c6 {[%emt 0:01:01]} 14. Nxf6+ {[%emt 0:02:49]} Nxf6 {[%emt 0:00:23]} 15. Bd3 {[%emt 0:03:03]} a5 {[%emt 0:01:59]} 16. Qf3 {[%emt 0:02:33]} Qd7 {[%emt 0:17:37]} 17. Bf5 {[%emt 0:06:54]} Qc7 {[%emt 0:00:24]} 18. Re1 {[%emt 0:01:10]} d5 {[%emt 0:06:02]} 19. g3 {[%emt 0:01:51]} g6 {[%emt 0:06:48]} 20. Bd3 {[%emt 0:05:31]} Qd7 {[%emt 0:01:23]} 21. Kg2 {[%emt 0:06:07]} Bf8 {[%emt 0:05:17]} 22. Bg5 {[%emt 0:11:03]} Rxe1 {[%emt 0:01:13]} 23. Rxe1 {[%emt 0:00:10]} Re8 {[%emt 0:00:12]} 24. Re2 {[%emt 0:05:26]} Rxe2 {[%emt 0:02:35]} 25. Qxe2 {[%emt 0:01:19]} Ne8 {[%emt 0:00:22]} 26. h4 {[%emt 0:07:54]} 1/2-1/2

[Event "Fagernes Chess GM-Swiss 2025"]
[Site "Fagernes"]
[Date "2025.04.16"]
[Round "5.11"]
[White "Bazakutsa, Svyatoslav"]
[Black "Grave, Jacob Templen"]
[Result "1/2-1/2"]
[Annotator "RC"]
[ECO "D35"]
[WhiteElo "2474"]
[BlackElo "2337"]
[PlyCount "87"]
[EventDate "2025.04.12"]
[EventCountry "NOR"]
[SourceTitle "playchess.com"]
[Source "ChessBase"]
[SourceQuality "1"]
[TimeControl "40/6000+30:2400+30"]

1. d4 {[%emt 0:03:38]} d5 {[%emt 0:00:17]} 2. c4 {[%emt 0:00:06]} e6 {[%emt 0:00:10]} 3. Nc3 {[%emt 0:00:19]} Nf6 {[%emt 0:00:15]} 4. cxd5 {[%emt 0:00:16]} exd5 {[%emt 0:00:07]} 5. Bf4 {[%emt 0:00:32]} Bd6 {[%emt 0:02:27]} 6. Bxd6 {[%emt 0:00:10]} Qxd6 {[%emt 0:00:05]} 7. e3 {[%emt 0:00:24]} Bf5 {[%emt 0:04:47]} 8. Qf3 {[%emt 0:00:48]} Be4 {[%emt 0:01:02]} 9. Qg3 {[%emt 0:00:31]} Qb4 {[%emt 0:08:14]} 10. Qe5+ {[%emt 0:00:38]} Kd8 {[%emt 0:00:13]} 11. O-O-O {[%emt 0:00:16]} Re8 {[%emt 0:01:49]} 12. Qg3 {[%emt 0:00:50]} Re6 {[%emt 0:22:15]} 13. Rd2 {[%emt 0:01:41]} Rc6 {[%emt 0:11:50]} 14. Kd1 {[%emt 0:02:31]} Nbd7 {[%emt 0:08:22]} 15. Ke1 {[%emt 0:04:58]} Bg6 {[%emt 0:02:17]} 16. f3 {[%emt 0:06:48]} Ke7 {[%emt 0:01:49]} 17. Nge2 {[%emt 0:31:28]} Kf8 {[%emt 0:02:28]} 18. Kf2 {[%emt 0:04:58]} Re8 {[%emt 0:01:22]} 19. Nf4 {[%emt 0:02:40]} Nb6 {[%emt 0:03:50]} 20. Bd3 {[%emt 0:09:07]} Bxd3 {[%emt 0:05:18]} 21. Nxd3 {[%emt 0:00:21]} Qe7 {[%emt 0:00:27]} 22. Ne5 {[%emt 0:08:17]} Nbd7 {[%emt 0:06:09]} 23. Nxd7+ {[%emt 0:00:18]} Qxd7 {[%emt 0:00:11]} 24. Re1 {[%emt 0:01:36]} Rce6 {[%emt 0:05:16]} 25. Rde2 {[%emt 0:02:01]} Qc6 {[%emt 0:02:17]} 26. Kg1 {[%emt 0:11:33]} Qc4 {[%emt 0:00:43]} 27. Qf2 {[%emt 0:01:09]} c5 {[%emt 0:03:49]} 28. dxc5 {[%emt 0:00:44]} Qxc5 {[%emt 0:00:32]} 29. h3 {[%emt 0:00:49]} b5 {[%emt 0:03:48]} 30. a3 {[%emt 0:03:25]} Qc4 {[%emt 0:01:55]} 31. Rd1 {[%emt 0:01:08]} a5 {[%emt 0:01:23]} 32. Rd4 {[%emt 0:01:24]} Qc5 {[%emt 0:00:54]} 33. a4 {[%emt 0:01:16]} b4 {[%emt 0:02:16]} 34. Nb5 {[%emt 0:00:09]} Rxe3 {[%emt 0:00:59]} 35. Rxe3 {[%emt 0:01:29]} Qc1+ {[%emt 0:00:05]} 36. Kh2 {[%emt 0:00:02]} Rxe3 {[%emt 0:02:30]} 37. Rd1 {[%emt 0:03:30]} Qxd1 {[%emt 0:00:49]} 38. Qxe3 {[%emt 0:00:02]} h6 {[%emt 0:04:25]} 39. Qc5+ {[%emt 0:06:27]} Kg8 {[%emt 0:00:07]} 40. Qc8+ {[%emt 0:00:52]} Kh7 {[%emt 0:00:05]} 41. Qf5+ {[%emt 0:40:29]} Kg8 {[%emt 0:42:21]} 42. Qc8+ {[%emt 0:00:00]} Kh7 {[%emt 0:00:00]} 43. Qf5+ {[%emt 0:00:00]} Kg8 {[%emt 0:00:00]} 44. Nd4 {[%emt 0:00:15]} 1/2-1/2

[Event "Fagernes Chess GM-Swiss 2025"]
[Site "Fagernes"]
[Date "2025.04.16"]
[Round "5.12"]
[White "Myagmarsuren, Evsuld"]
[Black "Kaasen, Tor Fredrik"]
[Result "1/2-1/2"]
[Annotator "RC"]
[ECO "C47"]
[WhiteElo "2305"]
[BlackElo "2472"]
[PlyCount "61"]
[EventDate "2025.04.12"]
[EventCountry "NOR"]
[SourceTitle "playchess.com"]
[Source "ChessBase"]
[SourceQuality "1"]
[TimeControl "40/6000+30:2400+30"]

1. e4 {[%emt 0:00:13]} e5 {[%emt 0:02:36]} 2. Nf3 {[%emt 0:00:09]} Nc6 {[%emt 0:00:08]} 3. Nc3 {[%emt 0:00:21]} Nf6 {[%emt 0:01:57]} 4. d4 {[%emt 0:00:12]} exd4 {[%emt 0:00:52]} 5. Nxd4 {[%emt 0:00:04]} Bb4 {[%emt 0:00:12]} 6. Nxc6 {[%emt 0:00:11]} bxc6 {[%emt 0:00:07]} 7. Bd3 {[%emt 0:00:05]} d5 {[%emt 0:00:14]} 8. exd5 {[%emt 0:00:03]} O-O {[%emt 0:00:19]} 9. O-O {[%emt 0:00:02]} Bg4 {[%emt 0:03:17]} 10. f3 {[%emt 0:00:32]} Bh5 {[%emt 0:00:06]} 11. dxc6 {[%emt 0:00:04]} Qd4+ {[%emt 0:00:27]} 12. Kh1 {[%emt 0:00:03]} Bxc3 {[%emt 0:00:11]} 13. bxc3 {[%emt 0:00:05]} Qxc3 {[%emt 0:00:08]} 14. Bf4 {[%emt 0:00:04]} Qxc6 {[%emt 0:02:30]} 15. Re1 {[%emt 0:00:02]} Bg6 {[%emt 0:01:30]} 16. a4 {[%emt 0:00:21]} Bxd3 {[%emt 0:01:16]} 17. cxd3 {[%emt 0:06:55]} Nd5 {[%emt 0:01:38]} 18. Be5 {[%emt 0:00:43]} Rfe8 {[%emt 0:00:48]} 19. Rc1 {[%emt 0:03:53]} Qd7 {[%emt 0:00:37]} 20. h3 {[%emt 0:08:52]} h6 {[%emt 0:13:16]} 21. Qc2 {[%emt 0:03:14]} Rad8 {[%emt 0:05:45]} 22. d4 Re6 {[%emt 0:00:00]} 23. Qc5 f6 {[%emt 0:00:00]} 24. Bg3 {[%emt 0:01:30]} Rxe1+ {[%emt 0:19:32]} 25. Rxe1 {[%emt 0:05:09]} Qxa4 {[%emt 0:00:30]} 26. Bxc7 {[%emt 0:00:30]} Nxc7 {[%emt 0:01:10]} 27. Qxc7 {[%emt 0:02:39]} Qxd4 {[%emt 0:01:03]} 28. Re7 {[%emt 0:00:55]} Qd1+ {[%emt 0:00:00]} 29. Kh2 {[%emt 0:00:05]} Qd6+ {[%emt 0:00:00]} 30. Qxd6 {[%emt 0:00:03]} Rxd6 {[%emt 0:00:00]} 31. Rxa7 {[%emt 0:00:19]} 1/2-1/2

[Event "Fagernes Chess GM-Swiss 2025"]
[Site "Fagernes"]
[Date "2025.04.16"]
[Round "5.13"]
[White "Hillarp Persson, Tiger"]
[Black "Lund, Gunnar"]
[Result "1-0"]
[Annotator "RC"]
[ECO "D36"]
[WhiteElo "2462"]
[BlackElo "2341"]
[PlyCount "77"]
[EventDate "2025.04.12"]
[EventCountry "NOR"]
[SourceTitle "playchess.com"]
[Source "ChessBase"]
[SourceQuality "1"]
[TimeControl "40/6000+30:2400+30"]

1. d4 {[%emt 0:03:41]} d5 {[%emt 0:01:23]} 2. c4 {[%emt 0:00:11]} e6 {[%emt 0:00:07]} 3. Nc3 {[%emt 0:00:06]} Nf6 {[%emt 0:00:12]} 4. cxd5 {[%emt 0:00:08]} exd5 {[%emt 0:00:07]} 5. Bg5 {[%emt 0:00:06]} c6 {[%emt 0:01:16]} 6. e3 {[%emt 0:00:07]} Be7 {[%emt 0:00:39]} 7. Bd3 {[%emt 0:00:08]} Nbd7 {[%emt 0:00:14]} 8. h3 {[%emt 0:00:14]} O-O {[%emt 0:10:01]} 9. Bf4 {[%emt 0:00:38]} Re8 {[%emt 0:01:13]} 10. Nf3 {[%emt 0:00:45]} Nf8 {[%emt 0:01:08]} 11. Qc2 {[%emt 0:00:08]} Ng6 {[%emt 0:01:47]} 12. Bh2 {[%emt 0:00:10]} Bd6 {[%emt 0:00:11]} 13. Bxd6 {[%emt 0:00:06]} Qxd6 {[%emt 0:00:05]} 14. O-O-O {[%emt 0:00:22]} Qe7 {[%emt 0:09:19]} 15. Kb1 {[%emt 0:08:01]} Ne4 {[%emt 0:07:06]} 16. h4 {[%emt 0:01:35]} Bf5 {[%emt 0:06:11]} 17. h5 {[%emt 0:01:27]} Nxc3+ {[%emt 0:00:37]} 18. Qxc3 {[%emt 0:00:10]} Bxd3+ {[%emt 0:00:12]} 19. Qxd3 {[%emt 0:00:20]} Nf8 {[%emt 0:00:09]} 20. Rh4 {[%emt 0:12:18]} Rad8 {[%emt 0:05:15]} 21. Rdh1 {[%emt 0:01:50]} Rd6 {[%emt 0:01:17]} 22. Rg4 {[%emt 0:26:00]} Nd7 {[%emt 0:07:28]} 23. Nh4 {[%emt 0:01:53]} Rf6 {[%emt 0:06:01]} 24. Nf5 {[%emt 0:02:58]} Qe6 {[%emt 0:06:53]} 25. Rxg7+ {[%emt 0:00:20]} Kh8 {[%emt 0:00:30]} 26. g4 {[%emt 0:01:37]} h6 {[%emt 0:06:21]} 27. f3 {[%emt 0:01:54]} Nf8 {[%emt 0:02:40]} 28. Rg1 {[%emt 0:09:34]} Qd7 {[%emt 0:03:46]} 29. e4 {[%emt 0:13:28]} dxe4 {[%emt 0:13:32]} 30. fxe4 {[%emt 0:00:16]} Ne6 {[%emt 0:00:14]} 31. g5 {[%emt 0:02:07]} Rxf5 {[%emt 0:01:46]} 32. gxh6 {[%emt 0:00:19]} Rf2 {[%emt 0:07:42]} 33. d5 {[%emt 0:00:14]} cxd5 {[%emt 0:06:20]} 34. Qg3 {[%emt 0:02:32]} Rf6 {[%emt 0:02:18]} 35. exd5 {[%emt 0:07:02]} Qb5 {[%emt 0:00:40]} 36. Qg2 {[%emt 0:07:04]} Qd3+ {[%emt 0:02:48]} 37. Ka1 {[%emt 0:00:07]} Rd8 {[%emt 0:01:01]} 38. Rg8+ {[%emt 0:00:57]} Kh7 {[%emt 0:00:06]} 39. Rxd8 {[%emt 0:00:11]} 1-0

[Event "Fagernes Chess GM-Swiss 2025"]
[Site "Fagernes"]
[Date "2025.04.16"]
[Round "5.14"]
[White "Mitusov, Semen"]
[Black "Vijayakumar, Rishi"]
[Result "1-0"]
[Annotator "RC"]
[ECO "C58"]
[WhiteElo "2459"]
[BlackElo "2317"]
[PlyCount "89"]
[EventDate "2025.04.12"]
[EventCountry "NOR"]
[SourceTitle "playchess.com"]
[Source "ChessBase"]
[SourceQuality "1"]
[TimeControl "40/6000+30:2400+30"]

1. e4 {[%emt 0:01:19]} e5 {[%emt 0:00:03]} 2. Nf3 {[%emt 0:01:11]} Nc6 {[%emt 0:00:06]} 3. Bc4 {[%emt 0:00:06]} Nf6 {[%emt 0:00:15]} 4. Ng5 {[%emt 0:00:49]} d5 {[%emt 0:00:12]} 5. exd5 {[%emt 0:00:09]} Na5 {[%emt 0:00:15]} 6. Bb5+ {[%emt 0:00:14]} Bd7 {[%emt 0:00:28]} 7. Qe2 {[%emt 0:02:51]} Bd6 {[%emt 0:00:13]} 8. Nc3 {[%emt 0:02:14]} c6 {[%emt 0:01:38]} 9. dxc6 {[%emt 0:01:37]} Nxc6 {[%emt 0:01:34]} 10. Nce4 {[%emt 0:03:21]} Nxe4 {[%emt 0:00:25]} 11. Nxe4 {[%emt 0:00:08]} Be7 {[%emt 0:00:20]} 12. c3 {[%emt 0:02:23]} O-O {[%emt 0:12:52]} 13. Ng3 {[%emt 0:01:17]} f5 {[%emt 0:02:18]} 14. d3 {[%emt 0:01:07]} Kh8 {[%emt 0:03:30]} 15. Bc4 {[%emt 0:04:21]} e4 {[%emt 0:26:53]} 16. Bf4 {[%emt 0:17:25]} Bg5 {[%emt 0:09:55]} 17. Qd2 {[%emt 0:08:02]} Bxf4 {[%emt 0:06:41]} 18. Qxf4 {[%emt 0:00:05]} g5 {[%emt 0:05:23]} 19. Qd2 {[%emt 0:11:59]} Ne5 {[%emt 0:09:08]} 20. dxe4 {[%emt 0:01:46]} f4 {[%emt 0:02:11]} 21. Qd4 {[%emt 0:08:47]} Qc7 {[%emt 0:11:42]} 22. Nf1 {[%emt 0:01:41]} Rad8 {[%emt 0:03:28]} 23. Bd5 {[%emt 0:01:37]} Bb5 {[%emt 0:00:25]} 24. O-O-O {[%emt 0:04:44]} Qg7 {[%emt 0:01:20]} 25. Kb1 {[%emt 0:01:19]} f3 {[%emt 0:01:04]} 26. gxf3 {[%emt 0:07:56]} Be2 {[%emt 0:02:46]} 27. Re1 {[%emt 0:01:36]} Bd3+ {[%emt 0:02:01]} 28. Ka1 {[%emt 0:00:42]} Nxf3 {[%emt 0:00:21]} 29. Qxg7+ {[%emt 0:01:54]} Kxg7 {[%emt 0:00:02]} 30. Rc1 {[%emt 0:00:44]} Ne5 {[%emt 0:02:09]} 31. Rg1 {[%emt 0:03:13]} Rxf2 {[%emt 0:04:38]} 32. Rxg5+ {[%emt 0:00:07]} Kf6 {[%emt 0:00:01]} 33. Rg1 {[%emt 0:00:22]} Rd6 {[%emt 0:00:08]} 34. Ne3 {[%emt 0:03:37]} Rb6 {[%emt 0:01:06]} 35. b4 {[%emt 0:05:42]} Ra6 {[%emt 0:00:24]} 36. Rg2 {[%emt 0:01:01]} Rf3 {[%emt 0:01:37]} 37. Re1 {[%emt 0:01:36]} b5 {[%emt 0:00:33]} 38. Ng4+ {[%emt 0:00:32]} Nxg4 {[%emt 0:00:14]} 39. e5+ {[%emt 0:00:08]} Nxe5 {[%emt 0:00:33]} 40. Bxf3 {[%emt 0:00:05]} Nxf3 {[%emt 0:00:14]} 41. Rf2 {[%emt 0:40:12]} Bc4 {[%emt 0:40:18]} 42. Rxf3+ {[%emt 0:00:14]} Kg5 {[%emt 0:00:13]} 43. Rf2 {[%emt 0:00:47]} Ra3 {[%emt 0:00:12]} 44. Rg1+ {[%emt 0:02:49]} Kh4 {[%emt 0:00:09]} 45. Rg3 {[%emt 0:00:05]} 1-0

[Event "Fagernes Chess GM-Swiss 2025"]
[Site "Fagernes"]
[Date "2025.04.16"]
[Round "5.15"]
[White "Eliseev, Sergey"]
[Black "Miezis, Normunds"]
[Result "1/2-1/2"]
[Annotator "RC"]
[ECO "C09"]
[WhiteElo "2226"]
[BlackElo "2409"]
[PlyCount "104"]
[EventDate "2025.04.12"]
[EventCountry "NOR"]
[SourceTitle "playchess.com"]
[Source "ChessBase"]
[SourceQuality "1"]
[TimeControl "40/6000+30:2400+30"]

1. e4 {[%emt 0:02:09]} c5 {[%emt 0:00:28]} 2. Nf3 {[%emt 0:00:30]} e6 {[%emt 0:00:17]} 3. c3 {[%emt 0:00:13]} d5 {[%emt 0:00:43]} 4. exd5 {[%emt 0:01:18]} exd5 {[%emt 0:00:32]} 5. d4 {[%emt 0:00:15]} Nc6 {[%emt 0:00:30]} 6. Bb5 {[%emt 0:00:08]} Bd6 {[%emt 0:01:20]} 7. dxc5 {[%emt 0:00:10]} Bxc5 {[%emt 0:00:16]} 8. O-O {[%emt 0:00:08]} Nge7 {[%emt 0:05:06]} 9. Nbd2 {[%emt 0:00:46]} O-O {[%emt 0:02:02]} 10. Nb3 {[%emt 0:00:11]} Bb6 {[%emt 0:01:34]} 11. Re1 {[%emt 0:03:28]} Bf5 {[%emt 0:05:49]} 12. Bg5 {[%emt 0:02:17]} f6 {[%emt 0:08:26]} 13. Be3 {[%emt 0:01:29]} Bg4 {[%emt 0:01:50]} 14. Bxb6 {[%emt 0:02:18]} axb6 {[%emt 0:00:56]} 15. Be2 {[%emt 0:07:00]} Qd7 {[%emt 0:05:49]} 16. Nfd4 {[%emt 0:02:23]} Bxe2 {[%emt 0:01:09]} 17. Qxe2 {[%emt 0:00:16]} Ng6 {[%emt 0:08:38]} 18. Qe6+ {[%emt 0:06:27]} Rf7 {[%emt 0:04:04]} 19. a3 {[%emt 0:05:44]} Nge5 {[%emt 0:03:50]} 20. Qxd7 {[%emt 0:01:34]} Rxd7 {[%emt 0:00:12]} 21. Re2 {[%emt 0:00:45]} Kf7 {[%emt 0:01:32]} 22. Kf1 {[%emt 0:01:31]} Nc4 {[%emt 0:08:58]} 23. Rd1 {[%emt 0:09:05]} Re8 {[%emt 0:01:48]} 24. Rc2 {[%emt 0:00:57]} h5 {[%emt 0:07:06]} 25. Nc1 {[%emt 0:05:59]} g5 {[%emt 0:02:53]} 26. a4 {[%emt 0:01:25]} Kg6 {[%emt 0:03:56]} 27. b3 {[%emt 0:00:30]} Nd6 {[%emt 0:06:31]} 28. Nb5 {[%emt 0:01:39]} Nxb5 {[%emt 0:10:32]} 29. axb5 {[%emt 0:00:26]} Na7 {[%emt 0:00:23]} 30. c4 {[%emt 0:00:31]} Rde7 {[%emt 0:00:15]} 31. Ra2 {[%emt 0:01:53]} Nc8 {[%emt 0:00:43]} 32. cxd5 {[%emt 0:19:32]} Nd6 {[%emt 0:00:31]} 33. Re2 {[%emt 0:01:20]} h4 {[%emt 0:03:41]} 34. Rxe7 {[%emt 0:01:32]} Rxe7 {[%emt 0:00:12]} 35. Nd3 {[%emt 0:00:21]} Nxb5 {[%emt 0:07:02]} 36. Nb2 {[%emt 0:01:07]} Nc3 {[%emt 0:03:25]} 37. Rd3 {[%emt 0:00:44]} Ne4 {[%emt 0:00:22]} 38. d6 {[%emt 0:05:39]} Rd7 {[%emt 0:00:44]} 39. Rd4 {[%emt 0:00:40]} f5 {[%emt 0:01:52]} 40. Nc4 {[%emt 0:01:29]} Kf6 {[%emt 0:00:25]} 41. f3 {[%emt 0:41:46]} b5 {[%emt 0:41:46]} 42. fxe4 {[%emt 0:01:38]} bxc4 {[%emt 0:00:32]} 43. Rxc4 {[%emt 0:02:32]} Rxd6 {[%emt 0:00:00]} 44. exf5 {[%emt 0:00:00]} Rd5 {[%emt 0:00:00]} 45. g4 {[%emt 0:00:00]} hxg3 {[%emt 0:00:00]} 46. hxg3 {[%emt 0:00:00]} Kxf5 {[%emt 0:00:00]} 47. Ke2 {[%emt 0:00:00]} b5 {[%emt 0:00:00]} 48. Rb4 {[%emt 0:00:00]} Rc5 {[%emt 0:00:00]} 49. Kd3 {[%emt 0:00:00]} Rd5+ {[%emt 0:00:00]} 50. Ke3 {[%emt 0:00:00]} Re5+ {[%emt 0:00:00]} 51. Kd3 {[%emt 0:00:00]} Rd5+ {[%emt 0:00:00]} 52. Ke3 {[%emt 0:00:00]} Re5+ {[%emt 0:00:00]} 1/2-1/2